bitfinex-derivatives/quotes_BNBF0:USTF0_20250220
["timestamp","ask_amount","ask_price","bid_price","bid_amount"]
[1740076165734,3.07311593,653.02,652.6,1.13018886]
[1740076165928,3.07311593,653.01,652.6,1.13018886]
[1740076166134,3.07311593,653.0,652.6,1.13018886]
[1740076166336,2.515,653.16,652.62,1.13018886]
[1740076166337,3.07311593,652.99,652.62,1.13018886]
[1740076166537,3.07311593,652.98,652.62,1.13018886]
[1740076166736,3.07311593,652.97,652.62,1.13018886]
[1740076166937,3.07311593,652.96,652.62,1.13018886]
[1740076167137,3.07311593,652.95,652.62,1.13018886]
[1740076167337,3.07311593,652.94,652.62,1.13018886]
[1740076167539,3.07311593,652.93,652.62,1.13018886]
[1740076167838,3.07311593,652.92,652.62,1.13018886]
[1740076168031,3.07311593,652.91,652.62,1.13018886]
[1740076168232,3.08879649,652.9,652.62,1.13018886]
[1740076168437,3.08879649,652.89,652.62,1.13018886]
[1740076168637,2.19690301,652.91,652.62,1.13018886]
[1740076168837,2.19690301,652.91,652.31,1.12967756]
[1740076168838,3.08879815,652.9,652.44,1.13018886]
[1740076169038,3.08879815,652.89,652.44,1.13018886]
[1740076169239,2.19690301,652.91,652.44,1.13018886]
[1740076169240,3.0922763,652.88,652.44,1.13018886]
[1740076169435,3.0922763,652.87,652.44,1.13018886]
[1740076169634,2.19690301,652.91,652.44,1.13018886]
[1740076169836,3.09222628,652.9,652.44,1.13018886]
[1740076170035,3.09222628,652.89,652.44,1.13018886]
[1740076170341,2.19690301,652.91,652.44,1.13018886]
[1740076170938,2.515,653.16,652.44,1.13018886]
[1740076171339,2.515,653.16,652.51,1.13018886]
[1740076171536,2.21115927,653.15,652.51,1.13018886]
[1740076172835,2.21115927,653.14,652.51,1.13018886]
[1740076173143,3.10162084,653.13,652.51,1.13018886]
[1740076173336,3.10162084,653.12,652.51,1.13018886]
[1740076173535,3.10162084,653.11,652.51,1.13018886]
[1740076173741,3.10162084,653.1,652.51,1.13018886]
[1740076174040,3.10162084,653.09,652.51,1.13018886]
[1740076174240,3.10162084,653.08,652.51,1.13018886]
[1740076174441,3.10162084,653.07,652.51,1.13018886]
[1740076174636,3.10162084,653.06,652.51,1.13018886]
[1740076174936,3.10162084,653.05,652.51,1.13018886]
[1740076175143,3.10162084,653.04,652.51,1.13018886]
[1740076175442,3.10162084,653.03,652.51,1.13018886]
[1740076175637,3.10162084,653.02,652.41,1.13018886]
[1740076175843,3.10162084,653.01,652.41,1.13018886]
[1740076176035,3.10162084,653.0,652.41,1.13018886]
[1740076176237,3.10162084,652.99,652.41,1.13018886]
[1740076176440,3.10162084,652.98,652.41,1.13018886]
[1740076176643,3.10162084,652.97,652.41,1.13018886]
[1740076176845,3.10162084,652.96,652.41,1.13018886]
[1740076177042,3.10162084,652.95,652.41,1.13018886]
[1740076177242,2.21115927,653.04,652.41,1.13018886]
[1740076177440,2.21115927,652.95,652.41,1.13018886]
[1740076177637,3.10393497,652.94,652.41,1.13018886]
[1740076177842,3.10393497,652.93,652.41,1.13018886]
[1740076178038,2.21115927,652.95,652.41,1.13018886]
[1740076178245,2.21115927,652.95,652.65,1.13018886]
[1740076178246,3.1041437,652.94,652.65,1.13018886]
[1740076178541,5.31584664,652.93,652.65,1.13018886]
[1740076178739,2.21115927,652.93,652.65,1.13018886]
[1740076180446,2.515,653.16,652.63,1.13018886]
[1740076180643,3.10629056,653.15,652.63,1.13018886]
[1740076180839,3.10629056,653.14,652.63,1.13018886]
[1740076181040,3.10629056,653.13,652.63,1.13018886]
[1740076181244,3.10629056,653.12,652.63,1.13018886]
[1740076181446,3.10629056,653.11,652.63,1.13018886]
[1740076181641,3.10629056,653.1,652.63,1.13018886]
[1740076181843,3.10629056,653.09,652.63,1.13018886]
[1740076182040,3.10629056,653.08,652.63,1.13018886]
[1740076182243,2.21906157,653.11,652.63,1.13018886]
[1740076182244,3.10629056,653.07,652.63,1.13018886]
[1740076182447,3.10629056,653.06,652.63,1.13018886]
[1740076182647,3.10629056,653.05,652.63,1.13018886]
[1740076182848,3.10629056,653.04,652.63,1.13018886]
[1740076183140,3.10629056,653.03,652.63,1.13018886]
[1740076183346,3.10629056,653.02,652.63,1.13018886]
[1740076183550,2.21906157,653.03,652.63,1.13018886]
[1740076183551,3.10629056,653.01,652.63,1.13018886]
[1740076183752,3.10629056,653.0,652.54,1.13018886]
[1740076183952,3.10629056,652.99,652.54,1.13018886]
[1740076184146,3.10629056,652.98,652.54,1.13018886]
[1740076184348,3.10629056,652.97,652.54,1.13018886]
[1740076184551,3.10629056,652.96,652.54,1.13018886]
[1740076184751,3.10629056,652.95,652.54,1.13018886]
[1740076184947,3.10629056,652.94,652.54,1.13018886]
[1740076185151,2.21906157,652.96,652.54,1.13018886]
[1740076185352,3.11400983,652.95,652.54,1.13018886]
[1740076185552,3.11400983,652.94,652.54,1.13018886]
[1740076185749,2.21906157,652.96,652.54,1.13018886]
[1740076185953,3.11400949,652.95,652.52,1.13018886]
[1740076186254,3.11400949,652.94,652.52,1.13018886]
[1740076186455,2.21906157,652.96,652.52,1.13018886]
[1740076186655,3.11399407,652.95,652.52,1.13018886]
[1740076186850,3.11399407,652.94,652.52,1.13018886]
[1740076187052,2.21906157,652.95,652.52,1.13018886]
[1740076187253,3.11395973,652.94,652.52,1.13018886]
[1740076187556,2.21906157,652.95,652.52,1.13018886]
[1740076187757,3.11394289,652.94,652.52,1.13018886]
[1740076188058,2.21906157,652.95,652.52,1.13018886]
[1740076188258,3.11389594,652.94,652.52,1.13018886]
[1740076188459,2.21906157,652.95,652.52,1.13018886]
[1740076188660,5.33291777,652.94,652.52,1.13018886]
[1740076188859,5.33291777,652.94,652.53,1.13018886]
[1740076188860,3.11390311,652.93,652.53,1.13018886]
[1740076189060,3.11390311,652.92,652.53,1.13018886]
[1740076189262,3.11390311,652.91,652.53,1.13018886]
[1740076189462,2.21906157,652.94,652.53,1.13018886]
[1740076189659,3.11396259,652.93,652.53,1.13018886]
[1740076189860,3.11396259,652.92,652.53,1.13018886]
[1740076190056,3.11396259,652.91,652.53,1.13018886]
[1740076190262,3.11396259,652.9,652.53,1.13018886]
[1740076190460,3.11396259,652.89,652.53,1.13018886]
[1740076190662,3.11396259,652.88,652.53,1.13018886]
[1740076190962,3.11396259,652.87,652.53,1.13018886]
[1740076191158,3.11396259,652.86,652.53,1.13018886]
[1740076191359,3.11396259,652.85,652.53,1.13018886]
[1740076191559,3.11396259,652.84,652.53,1.13018886]
[1740076191760,3.11396259,652.83,652.53,1.13018886]
[1740076191958,3.11396259,652.82,652.53,1.13018886]
[1740076192159,2.21906157,652.89,652.47,1.13018886]
[1740076192358,3.11400662,652.88,652.47,1.13018886]
[1740076192557,3.11400662,652.87,652.47,1.13018886]
[1740076192757,3.11400662,652.86,652.47,1.13018886]
[1740076192957,3.11400662,652.85,652.47,1.13018886]
[1740076193157,3.11400662,652.84,652.47,1.13018886]
[1740076193357,2.22396489,652.86,652.47,1.13018886]
[1740076193557,3.11389432,652.85,652.47,1.13018886]
[1740076193758,3.11389432,652.84,652.47,1.13018886]
[1740076193962,2.22396489,652.86,652.47,1.13018886]
[1740076194162,3.11392756,652.85,652.47,1.13018886]
[1740076194364,2.22396489,652.86,652.47,1.13018886]
[1740076194868,1.857,653.37,652.29,1.13018886]
[1740076194869,2.22396489,652.85,652.29,1.13018886]
[1740076196368,0.645,653.16,652.29,1.13018886]
[1740076196566,3.11370064,653.15,652.29,1.13018886]
[1740076196769,3.11370064,653.14,652.29,1.13018886]
[1740076196964,3.11370064,653.13,652.29,1.13018886]
[1740076197161,3.11370064,653.12,652.29,1.13018886]
[1740076197363,3.11370064,653.11,652.29,1.13018886]
[1740076197564,3.11370064,653.1,652.29,1.13018886]
[1740076197766,2.22376367,653.14,652.29,1.13018886]
[1740076197767,3.11370064,653.09,652.29,1.13018886]
[1740076198068,3.11370064,653.09,652.2,0.3066544]
[1740076198069,3.11370064,653.08,652.58,1.13018886]
[1740076198263,3.11370064,653.07,652.58,1.13018886]
[1740076198463,3.11370064,653.06,652.58,1.13018886]
[1740076198665,3.11370064,653.05,652.58,1.13018886]
[1740076198868,2.22376367,653.09,652.58,1.13018886]
[1740076198869,3.11370064,653.04,652.58,1.13018886]
[1740076199067,3.11370064,653.03,652.58,1.13018886]
[1740076199267,3.11370064,653.02,652.58,1.13018886]
[1740076199466,3.11370064,653.01,652.58,1.13018886]
[1740076199771,3.11370064,653.0,652.58,1.13018886]
[1740076199966,3.11370064,652.99,652.58,1.13018886]
[1740076200167,3.11370064,652.98,652.58,1.13018886]
[1740076200366,3.11370064,652.97,652.58,1.13018886]
[1740076200569,3.11370064,652.96,652.58,1.13018886]
[1740076200771,3.11370064,652.95,652.58,1.13018886]
[1740076201073,3.11370064,652.94,652.58,1.13018886]
[1740076201274,3.11370064,652.93,652.58,1.13018886]
[1740076201470,2.22376367,653.0,652.59,1.13018886]
[1740076201471,3.11370064,652.92,652.59,1.13018886]
[1740076201673,3.11370064,652.91,652.59,1.13018886]
[1740076201869,3.11370064,652.9,652.59,1.13018886]
[1740076202074,3.11370064,652.89,652.59,1.13018886]
[1740076202274,3.11370064,652.88,652.59,1.13018886]
[1740076202574,3.11370064,652.87,652.59,1.13018886]
[1740076202775,3.11370064,652.86,652.59,1.13018886]
[1740076203075,3.11370064,652.85,652.59,1.13018886]
[1740076203275,0.645,653.16,652.59,1.13018886]
[1740076203473,3.1137111,653.15,652.59,1.13018886]
[1740076203770,3.1137111,653.14,652.59,1.13018886]
[1740076203975,3.1137111,653.13,652.59,1.13018886]
[1740076204274,3.1137111,653.12,652.69,1.13018886]
[1740076204473,3.1137111,653.11,652.69,1.13018886]
[1740076204673,3.1137111,653.1,652.69,1.13018886]
[1740076204875,3.1137111,653.09,652.69,1.13018886]
[1740076205077,3.1137111,653.08,652.69,1.13018886]
[1740076205275,3.1137111,653.07,652.69,1.13018886]
[1740076205576,3.1137111,653.06,652.69,1.13018886]
[1740076205875,3.1137111,653.05,652.69,1.13018886]
[1740076206077,2.22378525,653.09,652.69,1.13018886]
[1740076206078,3.1137111,653.04,652.69,1.13018886]
[1740076206275,3.1137111,653.03,652.69,1.13018886]
[1740076206476,3.1137111,653.02,652.69,1.13018886]
[1740076206675,3.1137111,653.01,652.69,1.13018886]
[1740076206975,3.1137111,653.0,652.69,1.13018886]
[1740076207178,3.1137111,652.99,652.69,1.13018886]
[1740076207481,3.1137111,652.98,652.54,1.13018886]
[1740076207670,5.33749635,652.97,652.54,1.13018886]
[1740076207871,3.1137111,652.96,652.54,1.13018886]
[1740076208072,3.1137111,652.95,652.54,1.13018886]
[1740076208275,3.1137111,652.94,652.54,1.13018886]
[1740076208476,3.1137111,652.93,652.54,1.13018886]
[1740076208678,3.1137111,652.92,652.54,1.13018886]
[1740076208881,3.1137111,652.91,652.54,1.13018886]
[1740076209081,3.1137111,652.9,652.54,1.13018886]
[1740076209279,2.22378525,652.97,652.54,1.13018886]
[1740076209580,3.11348095,652.96,652.54,1.13018886]
[1740076209780,3.11348095,652.95,652.54,1.13018886]
[1740076210078,3.11348095,652.94,652.54,1.13018886]
[1740076210278,3.11348095,652.93,652.54,1.13018886]
[1740076210480,2.22378525,652.96,652.58,1.13018886]
[1740076210481,3.11348095,652.92,652.58,1.13018886]
[1740076210677,3.11348095,652.91,652.58,1.13018886]
[1740076210878,2.22378525,652.96,652.58,1.13018886]
[1740076211078,3.11344998,652.95,652.58,1.13018886]
[1740076211277,3.11344998,652.94,652.58,1.13018886]
[1740076211579,3.11344998,652.93,652.58,1.13018886]
[1740076211878,2.22378525,652.94,652.58,1.13018886]
[1740076212180,3.11333369,652.93,652.58,1.13018886]
[1740076212380,2.22378525,652.94,652.58,1.13018886]
[1740076212978,0.645,653.16,652.49,1.13018886]
[1740076213178,3.11308257,653.15,652.49,1.13018886]
[1740076213480,5.33621408,653.14,652.49,1.13018886]
[1740076213680,3.11308257,653.13,652.49,1.13018886]
[1740076213883,3.11308257,653.12,652.49,1.13018886]
[1740076214082,3.11308257,653.11,652.49,1.13018886]
[1740076214282,3.11308257,653.1,652.49,1.13018886]
[1740076214484,3.11308257,653.09,652.49,1.13018886]
[1740076214675,3.11308257,653.08,652.49,1.13018886]
[1740076214881,3.11308257,653.07,652.49,1.13018886]
[1740076215082,3.11308257,653.06,652.49,1.13018886]
[1740076215278,3.11308257,653.05,652.49,1.13018886]
[1740076215476,3.11308257,653.04,652.49,1.13018886]
[1740076215677,3.11308257,653.03,652.49,1.13018886]
[1740076215884,3.11308257,653.02,652.49,1.13018886]
[1740076216085,3.11308257,653.01,652.49,1.13018886]
[1740076216283,3.11308257,653.0,652.49,1.13018886]
[1740076216584,3.11308257,652.99,652.49,1.13018886]
[1740076216783,3.11308257,652.98,652.49,1.13018886]
[1740076216984,3.11308257,652.97,652.49,1.13018886]
[1740076217182,1.477,653.38,652.49,1.13018886]
[1740076217384,3.11234077,653.37,652.49,1.13018886]
[1740076217684,3.11234077,653.36,652.49,1.13018886]
[1740076217980,3.11234077,653.35,652.49,1.13018886]
[1740076218181,3.11234077,653.34,652.49,1.13018886]
[1740076218486,3.11234077,653.33,652.49,1.13018886]
[1740076218688,3.11234077,653.32,652.49,1.13018886]
[1740076218888,3.11234077,653.31,652.49,1.13018886]
[1740076219087,3.11234077,653.3,652.49,1.13018886]
[1740076219287,3.11234077,653.29,652.49,1.13018886]
[1740076219487,3.067,653.34,652.49,1.13018886]
[1740076219488,3.11234077,653.28,652.49,1.13018886]
[1740076219685,3.11234077,653.27,652.49,1.13018886]
[1740076219882,3.11234077,653.26,652.49,1.13018886]
[1740076220187,3.11234077,653.25,652.49,1.13018886]
[1740076220389,3.11234077,653.24,652.49,1.13018886]
[1740076220586,2.22255252,653.26,652.49,1.13018886]
[1740076220587,3.11234077,653.23,652.49,1.13018886]
[1740076220788,3.11234077,653.22,652.49,1.13018886]
[1740076220988,3.11234077,653.21,652.49,1.13018886]
[1740076221189,3.11234077,653.2,652.49,1.13018886]
[1740076221389,3.11234077,653.19,652.5,1.13018886]
[1740076221587,3.11234077,653.18,652.5,1.13018886]
[1740076221788,3.11234077,653.17,652.5,1.13018886]
[1740076221984,2.22255252,653.17,652.5,1.13018886]
[1740076223993,2.22255252,653.16,652.5,1.13018886]
[1740076224796,3.11059377,653.15,652.5,1.13018886]
[1740076224996,3.11059377,653.14,652.5,1.13018886]
[1740076225191,3.11059377,653.13,652.5,1.13018886]
[1740076225392,5.33314629,653.12,652.5,1.13018886]
[1740076225593,3.11059377,653.11,652.5,1.13018886]
[1740076225794,2.22255252,653.12,652.21,0.83874982]
[1740076225795,3.11059377,653.1,652.59,1.13018886]
[1740076225996,3.11059377,653.09,652.59,1.13018886]
[1740076226197,3.11059377,653.08,652.59,1.13018886]
[1740076226498,3.11059377,653.07,652.59,1.13018886]
[1740076226797,3.11059377,653.06,652.59,1.13018886]
[1740076227001,3.11059377,653.05,652.59,1.13018886]
[1740076227198,3.11059377,653.04,652.59,1.13018886]
[1740076227393,3.11059377,653.03,652.59,1.13018886]
[1740076227598,3.11059377,653.02,652.59,1.13018886]
[1740076227799,2.22255252,653.03,652.59,1.13018886]
[1740076227993,3.11023182,653.02,652.59,1.13018886]
[1740076228199,3.11023182,653.01,652.59,1.13018886]
[1740076228500,3.11023182,653.0,652.59,1.13018886]
[1740076228696,2.22255252,653.03,652.59,1.13018886]
[1740076228697,3.11023182,652.99,652.59,1.13018886]
[1740076228998,2.22255252,653.03,652.7,1.13018886]
[1740076229197,3.1104303,653.02,652.7,1.13018886]
[1740076229395,3.1104303,653.01,652.7,1.13018886]
[1740076229592,3.1104303,653.0,652.7,1.13018886]
[1740076229802,3.1104303,652.99,652.7,1.13018886]
[1740076229997,2.22255252,653.0,652.7,1.13018886]
[1740076230194,3.1104226,652.99,652.7,1.13018886]
[1740076230401,2.22255252,653.0,652.7,1.13018886]
[1740076231894,2.537,653.34,652.76,1.13018886]
[1740076232096,3.11006673,653.33,652.76,1.13018886]
[1740076232300,3.11006673,653.32,652.76,1.13018886]
[1740076232502,3.11006673,653.31,652.76,1.13018886]
[1740076232700,3.11006673,653.3,652.76,1.13018886]
[1740076232900,3.11006673,653.29,652.76,1.13018886]
[1740076233096,3.11006673,653.28,652.76,1.13018886]
[1740076233299,3.11006673,653.27,652.76,1.13018886]
[1740076233501,3.11006673,653.26,652.76,1.13018886]
[1740076233699,3.11006673,653.25,652.76,1.13018886]
[1740076233902,3.11006673,653.24,652.76,1.13018886]
[1740076234102,3.11006673,653.23,652.76,1.13018886]
[1740076234300,5.33098944,653.22,652.76,1.13018886]
[1740076234500,3.11006673,653.21,652.76,1.13018886]
[1740076234700,3.11006673,653.2,652.76,1.13018886]
[1740076234900,3.11006673,653.19,652.76,1.13018886]
[1740076235103,3.11006673,653.18,652.76,1.13018886]
[1740076235299,3.11006673,653.17,652.76,1.13018886]
[1740076235499,3.11006673,653.16,652.76,1.13018886]
[1740076235704,2.22092271,653.17,652.76,1.13018886]
[1740076235705,3.11006673,653.15,652.76,1.13018886]
[1740076235898,2.22092271,653.17,652.76,1.13018886]
[1740076236104,2.22092271,653.17,652.5,1.13018886]
[1740076236299,0.645,653.34,652.5,1.13018886]
[1740076236500,3.10847409,653.33,652.5,1.13018886]
[1740076236703,3.10847409,653.32,652.5,1.13018886]
[1740076236998,5.32737482,653.31,652.5,1.13018886]
[1740076237208,3.10847409,653.3,652.5,1.13018886]
[1740076237406,3.10847409,653.29,652.5,1.13018886]
[1740076237607,3.10847409,653.28,652.5,1.13018886]
[1740076237908,3.10847409,653.27,652.5,1.13018886]
[1740076238108,3.10847409,653.26,652.5,1.13018886]
[1740076238303,3.10847409,653.25,652.5,1.13018886]
[1740076238607,3.10847409,653.24,652.5,1.13018886]
[1740076238908,3.10847409,653.23,652.5,1.13018886]
[1740076239105,3.10847409,653.22,652.6,1.13018886]
[1740076239301,3.10847409,653.21,652.6,1.13018886]
[1740076239506,2.21890073,653.25,652.6,1.13018886]
[1740076239705,3.10452093,653.24,652.6,1.13018886]
[1740076239910,3.10452093,653.23,652.6,1.13018886]
[1740076240102,2.21890073,653.25,652.6,1.13018886]
[1740076240502,0.645,653.34,652.6,1.13018886]
[1740076240806,3.10296914,653.33,652.6,1.13018886]
[1740076241003,3.10296914,653.32,652.6,1.13018886]
[1740076241312,2.21549935,653.31,652.63,1.13018886]
[1740076241810,0.645,653.34,652.63,1.13018886]
[1740076244809,2.852,653.44,652.63,1.13018886]
[1740076245011,3.09582945,653.43,652.77,1.13018886]
[1740076245309,3.09582945,653.42,652.77,1.13018886]
[1740076245510,5.30539866,653.41,652.77,1.13018886]
[1740076245712,3.09582945,653.4,652.77,1.13018886]
[1740076245913,3.09582945,653.39,652.77,1.13018886]
[1740076246213,2.20956921,653.41,652.77,1.13018886]
[1740076246214,3.09582945,653.38,652.77,1.13018886]
[1740076246406,3.09582945,653.37,652.77,1.13018886]
[1740076246605,2.20956921,653.41,652.77,1.13018886]
[1740076246606,3.09582945,653.36,652.77,1.13018886]
[1740076246810,3.09582945,653.35,652.77,1.13018886]
[1740076247006,3.09582945,653.34,652.77,1.13018886]
[1740076247207,2.852,653.44,652.77,1.13018886]
[1740076247411,3.09379239,653.43,652.77,1.13018886]
[1740076247607,3.09379239,653.42,652.59,1.13018886]
[1740076247806,3.09379239,653.41,652.59,1.13018886]
[1740076248006,3.09379239,653.4,652.59,1.13018886]
[1740076248212,3.09379239,653.39,652.59,1.13018886]
[1740076248405,3.09379239,653.38,652.59,1.13018886]
[1740076248606,3.09379239,653.37,652.59,1.13018886]
[1740076248811,3.09379239,653.36,652.59,1.13018886]
[1740076249012,2.20857105,653.43,652.59,1.13018886]
[1740076249214,2.20857105,653.36,652.59,1.13018886]
[1740076249414,2.20857105,653.36,652.84,1.13018886]
[1740076250915,2.20857105,653.36,652.87,1.13018886]
[1740076251114,1.893,653.51,652.87,1.13018886]
[1740076251315,3.09074075,653.5,652.87,1.13018886]
[1740076251509,3.09074075,653.49,652.87,1.13018886]
[1740076251714,3.09074075,653.48,652.87,1.13018886]
[1740076251914,3.09074075,653.47,652.87,1.13018886]
[1740076252118,3.09074075,653.46,652.87,1.13018886]
[1740076252317,3.09074075,653.45,652.87,1.13018886]
[1740076252619,2.20626679,653.49,652.87,1.13018886]
[1740076252820,3.08925902,653.48,652.87,1.13018886]
[1740076253016,3.08925902,653.47,652.87,1.13018886]
[1740076253217,3.08925902,653.46,652.86,1.13018886]
[1740076253421,3.08925902,653.45,652.86,1.13018886]
[1740076253623,3.08925902,653.44,652.86,1.13018886]
[1740076253922,3.08925902,653.43,652.86,1.13018886]
[1740076254217,2.20626679,653.48,652.86,1.13018886]
[1740076254422,3.08901226,653.47,652.86,1.13018886]
[1740076254623,3.08901226,653.46,652.86,1.13018886]
[1740076254822,3.08901226,653.45,652.86,1.13018886]
[1740076255018,3.08901226,653.44,652.86,1.13018886]
[1740076255224,2.20626679,653.47,652.86,1.13018886]
[1740076255723,2.20626679,653.47,652.91,1.13018886]
[1740076255922,3.08793935,653.46,652.91,1.13018886]
[1740076256126,2.20626679,653.47,652.91,1.13018886]
[1740076256327,2.20626679,653.46,652.91,1.13018886]
[1740076258326,1.893,653.51,652.91,1.13018886]
[1740076259125,1.893,653.51,652.6,1.13018886]
[1740076259320,1.893,653.51,652.61,0.30646174]
[1740076261521,0.644,653.71,652.61,0.30646174]
[1740076261727,0.644,653.71,652.61,1.4366506]
[1740076262120,2.20203657,653.7,652.61,1.4366506]
[1740076262321,3.08373187,653.69,652.61,1.4366506]
[1740076262527,2.20203657,653.7,652.61,1.4366506]
[1740076262528,3.08373187,653.68,652.61,1.4366506]
[1740076262727,3.08373187,653.67,652.61,1.4366506]
[1740076262928,3.08373187,653.66,652.61,1.4366506]
[1740076263132,3.08373187,653.65,652.61,1.4366506]
[1740076263332,3.08373187,653.64,652.61,1.4366506]
[1740076263528,3.08373187,653.63,652.61,1.4366506]
[1740076263729,3.08373187,653.62,652.61,1.4366506]
[1740076264027,3.08373187,653.61,652.61,1.4366506]
[1740076264229,3.08373187,653.6,652.61,1.4366506]
[1740076264431,3.08373187,653.59,652.73,1.13018886]
[1740076264630,3.08373187,653.58,652.73,1.13018886]
[1740076264831,3.08373187,653.57,652.73,1.13018886]
[1740076265032,2.20203657,653.63,652.73,1.13018886]
[1740076265427,2.20203657,653.56,652.73,1.13018886]
[1740076266125,3.08517793,653.55,652.7,1.13018886]
[1740076266327,2.20203657,653.56,652.7,1.13018886]
[1740076266526,3.08552283,653.55,652.7,1.13018886]
[1740076266733,3.08552279,653.54,652.7,1.13018886]
[1740076266929,3.08552279,653.53,652.7,1.13018886]
[1740076267125,2.20203657,653.54,652.7,1.13018886]
[1740076267330,3.08575613,653.53,652.7,1.13018886]
[1740076267530,3.08575613,653.52,652.7,1.13018886]
[1740076267726,2.20203657,653.54,652.7,1.13018886]
[1740076267927,3.08599181,653.53,652.7,1.13018886]
[1740076268129,3.08599181,653.52,652.7,1.13018886]
[1740076268330,2.20203657,653.54,652.7,1.13018886]
[1740076268531,3.0865283,653.53,652.7,1.13018886]
[1740076268727,3.0865283,653.52,652.7,1.13018886]
[1740076268927,3.0865283,653.51,652.7,1.13018886]
[1740076269133,3.0865283,653.5,652.7,1.13018886]
[1740076269339,3.0865283,653.49,652.61,0.30646174]
[1740076269534,3.0865283,653.48,652.61,0.30646174]
[1740076269734,3.0865283,653.47,652.61,0.30646174]
[1740076269936,3.0865283,653.46,652.61,0.30646174]
[1740076270132,3.0865283,653.45,652.61,0.30646174]
[1740076270336,3.0865283,653.44,652.61,0.30646174]
[1740076270632,2.20203657,653.53,652.61,0.30646174]
[1740076271040,2.20203657,653.43,652.61,0.30646174]
[1740076273140,2.20203657,653.42,652.61,0.30646174]
[1740076274344,2.20203657,653.42,653.01,1.13018886]
[1740076274539,1.45,653.52,653.01,1.13018886]
[1740076274540,2.20203657,653.41,653.01,1.13018886]
[1740076277042,1.45,653.52,653.01,1.13018886]
[1740076277244,1.45,653.52,653.1,1.13018886]
[1740076277542,1.52,653.6,653.1,1.13018886]
[1740076277743,2.20582968,653.51,653.1,1.13018886]
[1740076277941,3.08953893,653.5,653.1,1.13018886]
[1740076278143,3.08953893,653.49,653.1,1.13018886]
[1740076278344,3.08953893,653.48,653.1,1.13018886]
[1740076278545,3.08953893,653.47,653.1,1.13018886]
[1740076278750,3.08953893,653.46,653.1,1.13018886]
[1740076278947,3.08953893,653.45,653.1,1.13018886]
[1740076279147,2.20582968,653.51,653.1,1.13018886]
[1740076279448,5.29574996,653.5,653.1,1.13018886]
[1740076279646,3.08992028,653.49,653.1,1.13018886]
[1740076279843,3.08992028,653.48,653.1,1.13018886]
[1740076280147,3.08992028,653.47,653.1,1.13018886]
[1740076280344,3.08992028,653.46,653.1,1.13018886]
[1740076280547,3.08992028,653.45,653.1,1.13018886]
[1740076280846,1.52,653.6,653.1,1.13018886]
[1740076281047,3.09039524,653.59,653.1,1.13018886]
[1740076281246,3.09039524,653.58,653.1,1.13018886]
[1740076281443,3.09039524,653.57,653.1,1.13018886]
[1740076281644,3.09039524,653.56,653.1,1.13018886]
[1740076281842,3.09039524,653.55,653.1,1.13018886]
[1740076282045,2.20607443,653.58,653.1,1.13018886]
[1740076282046,3.09039524,653.54,653.1,1.13018886]
[1740076282246,2.20607443,653.58,653.1,1.13018886]
[1740076282447,3.09009699,653.57,653.1,1.13018886]
[1740076282743,3.09009699,653.56,653.1,1.13018886]
[1740076282943,2.20607443,653.58,653.1,1.13018886]
[1740076283150,5.29646918,653.57,653.1,1.13018886]
[1740076283455,2.20607443,653.57,653.1,1.13018886]
[1740076283751,3.09055233,653.56,653.1,1.13018886]
[1740076283952,3.09055233,653.55,653.1,1.13018886]
[1740076284252,2.20607443,653.57,652.96,1.13018886]
[1740076284446,3.09046415,653.56,652.96,1.13018886]
[1740076284644,2.20607443,653.57,652.96,1.13018886]
[1740076285047,1.586,653.66,652.96,1.13018886]
[1740076285348,3.0905057,653.65,652.96,1.13018886]
[1740076285650,3.0905057,653.64,652.96,1.13018886]
[1740076285950,3.0905057,653.63,652.96,1.13018886]
[1740076286149,3.0905057,653.62,652.96,1.13018886]
[1740076286350,3.0905057,653.61,652.96,1.13018886]
[1740076286650,3.0905057,653.6,652.96,1.13018886]
[1740076286843,2.20666902,653.64,652.96,1.13018886]
[1740076287045,3.09129323,653.63,652.96,1.13018886]
[1740076287245,2.20666902,653.64,652.96,1.13018886]
[1740076287846,1.14299538,654.42,652.96,1.13018886]
[1740076288052,3.09144426,653.94,652.96,1.13018886]
[1740076288249,5.2980222,653.93,653.09,1.13018886]
[1740076288448,3.09144426,653.92,653.09,1.13018886]
[1740076288649,3.09144426,653.91,653.09,1.13018886]
[1740076288845,3.09144426,653.9,653.09,1.13018886]
[1740076289049,3.09144426,653.89,653.09,1.13018886]
[1740076289253,3.09144426,653.88,653.09,1.13018886]
[1740076289452,3.09144426,653.87,653.09,1.13018886]
[1740076289752,3.09144426,653.86,653.09,1.13018886]
[1740076290052,3.09144426,653.85,653.09,1.13018886]
[1740076290253,3.09144426,653.84,653.09,1.13018886]
[1740076290553,3.09144426,653.83,653.09,1.13018886]
[1740076290753,3.09144426,653.82,653.09,1.13018886]
[1740076290953,3.09144426,653.81,653.09,1.13018886]
[1740076291255,3.09144426,653.8,653.09,1.13018886]
[1740076291553,3.09144426,653.79,653.09,1.13018886]
[1740076291753,3.09144426,653.78,653.09,1.13018886]
[1740076291955,3.09144426,653.77,653.23,1.13018886]
[1740076292151,3.09144426,653.76,653.23,1.13018886]
[1740076292355,3.09144426,653.75,653.23,1.13018886]
[1740076292654,3.09144426,653.74,653.23,1.13018886]
[1740076292856,3.09144426,653.73,653.23,1.13018886]